bitfinex-derivatives/quotes_ETHF0:USTF0_20250612
["timestamp","ask_amount","ask_price","bid_price","bid_amount"]
[1749730431468,5.74579954,2716.8,2716.3,55.48914]
[1749730431660,0.73613,2716.4,2716.3,54.753]
[1749730432171,0.73612,2716.5,2716.3,54.753]
[1749730432373,3.90567954,2716.8,2716.3,54.753]
[1749730432567,0.73607,2716.7,2716.6,0.73608]
[1749730432873,0.73607,2716.7,2716.6,24.847]
[1749730433172,3.90567954,2716.8,2716.6,24.847]
[1749730433471,0.73605,2716.7,2716.6,24.847]
[1749730434373,0.73605,2716.7,2716.6,24.821]
[1749730434667,0.73605,2716.7,2716.6,32.069]
[1749730435070,0.73605,2716.7,2716.4,0.845]
[1749730435071,3.2078,2716.8,2716.4,1.58112]
[1749730435267,0.73608,2716.6,2716.5,32.79611]
[1749730435467,0.73608,2716.6,2716.5,32.06]
[1749730435862,3.2078,2716.8,2716.5,32.06]
[1749730436067,0.70876016,2716.9,2716.8,0.73603]
[1749730436267,0.73598,2717.0,2716.9,0.736]
[1749730436469,4.0342,2717.1,2716.8,24.804]
[1749730436672,0.73599,2717.0,2716.9,0.73598]
[1749730436967,3.2078,2717.1,2716.9,24.811]
[1749730437171,0.73608,2716.7,2716.5,3.2078]
[1749730437372,3.9073397,2717.1,2716.6,32.039]
[1749730437572,0.73605,2716.8,2716.7,0.73605]
[1749730437875,0.73605,2716.8,2716.7,32.77505]
[1749730439374,3.9073397,2717.1,2716.7,32.039]
[1749730439773,0.73603,2716.9,2716.8,0.73601]
[1749730440275,0.73598,2717.0,2716.9,0.73597]
[1749730440481,0.73598,2717.0,2716.9,24.768]
[1749730441071,0.73598,2717.0,2716.9,25.504]
[1749730441273,0.73597,2717.0,2716.9,25.50397]
[1749730441577,1.4354997,2717.1,2716.9,24.768]
[1749730441774,0.6995397,2717.1,2717.0,0.73597]
[1749730442080,1.83955,2717.6,2717.3,0.73588]
[1749730442271,3.2078,2717.7,2717.5,0.73582]
[1749730442573,0.73578,2717.7,2717.6,24.767]
[1749730442983,0.73578,2717.7,2717.6,22.92710068]
[1749730443878,0.73578,2717.7,2717.6,21.08720136]
[1749730444077,0.73578,2717.7,2717.6,21.82301136]
[1749730444283,1.44896765,2717.7,2717.6,19.98311204]
[1749730444680,1.44896765,2717.7,2717.6,19.24730204]
[1749730444872,1.44896765,2717.7,2717.6,19.98311204]
[1749730445681,3.2078,2718.4,2717.9,0.73573]
[1749730445879,3.2078,2718.4,2718.3,0.73562]
[1749730446081,3.94339,2718.4,2718.3,24.762]
[1749730446276,4.6567165,2718.4,2718.3,24.762]
[1749730446472,4.6567165,2718.4,2718.3,22.92247975]
[1749730446685,1.83911,2718.3,2717.8,0.891]
[1749730446885,0.73573,2717.9,2717.8,1.62675]
[1749730447183,0.73573,2717.9,2717.8,32.905]
[1749730447385,0.73573,2717.9,2717.8,32.904]
[1749730448885,3.0581,2718.3,2717.8,32.904]
[1749730449078,0.73573,2717.9,2717.8,32.904]
[1749730449674,0.73567,2718.2,2717.8,32.904]
[1749730449880,0.73565,2718.2,2717.8,34.1467]
[1749730450075,3.9211265,2718.4,2717.8,34.1467]
[1749730450386,0.73569,2718.1,2718.0,0.7357]
[1749730450682,0.73569,2718.1,2718.0,26.7715]
[1749730451085,0.73569,2718.1,2718.0,26.0358]
[1749730451281,0.73569,2718.1,2718.0,24.758]
[1749730452283,0.73569,2718.1,2718.0,25.4937]
[1749730452485,0.73569,2718.1,2718.0,24.758]
[1749730453382,0.73567,2718.1,2718.0,25.4937]
[1749730453586,3.9211265,2718.4,2718.0,25.4937]
[1749730453587,0.73567,2718.2,2718.0,26.0136]
[1749730453782,0.73567,2718.1,2718.0,26.0136]
[1749730453979,0.73567,2718.1,2718.0,29.2214]
[1749730454285,0.73567,2718.1,2718.0,29.9571]
[1749730454484,0.73567,2718.1,2718.0,29.2214]
[1749730454885,0.73567,2718.2,2718.1,0.73567]
[1749730455088,0.73563,2718.3,2718.2,0.73563]
[1749730455281,0.7133265,2718.4,2718.2,0.73563]
[1749730455282,0.73552,2718.7,2718.6,0.73554]
[1749730455485,0.73551,2718.7,2718.6,24.752]
[1749730456287,0.73551,2718.7,2718.6,25.48754]
[1749730456487,0.73551,2718.7,2718.6,24.752]
[1749730456888,0.73549,2718.8,2718.7,0.7355]
[1749730457084,0.73549,2718.8,2718.7,7.25]
[1749730457794,3.2078,2719.0,2718.7,7.25]
[1749730458092,0.73546,2718.9,2718.8,24.748]
[1749730458681,3.2078,2719.0,2718.9,0.73546]
[1749730458885,0.73546,2718.9,2718.8,24.748]
[1749730459388,3.94348,2719.2,2718.8,24.748]
[1749730459588,0.73546,2718.9,2718.8,24.748]
[1749730459989,0.73546,2718.9,2718.8,25.48348]
[1749730460196,0.73546,2718.9,2718.8,25.48347]
[1749730460389,0.73546,2718.9,2718.8,24.748]
[1749730460590,2.105,2719.2,2718.8,24.748]
[1749730460790,2.80532553,2719.2,2718.8,24.748]
[1749730461094,0.73543,2719.1,2719.0,0.73542]
[1749730461295,0.73543,2719.1,2719.0,31.918]
[1749730462097,0.73543,2719.1,2719.0,32.65343]
[1749730462391,0.73543,2719.1,2719.0,31.918]
[1749730462799,0.73543,2719.1,2719.0,31.916]
[1749730463497,0.73538,2719.3,2719.2,0.73537]
[1749730463692,0.73534,2719.4,2719.2,24.743]
[1749730463894,3.2078,2719.6,2719.3,22.247]
[1749730464094,3.2078,2719.6,2719.5,0.73529]
[1749730464296,0.73529,2719.5,2719.4,32.64929]
[1749730465190,0.73531,2719.5,2719.4,0.73532]
[1749730465393,0.73531,2719.5,2719.4,32.64532]
[1749730465799,0.73529,2719.6,2719.5,0.73529]
[1749730465997,0.7352,2719.9,2719.8,0.7352]
[1749730466201,3.2078,2720.0,2719.9,0.73519]
[1749730466504,3.94296,2720.0,2719.9,0.73519]
[1749730466703,3.91720638,2720.4,2720.3,0.73508]
[1749730466899,3.94285,2720.4,2720.3,31.905]
[1749730467204,0.73505,2720.4,2720.3,31.905]
[1749730467700,4.0246,2720.8,2720.3,31.905]
[1749730467904,4.0246,2720.8,2720.5,0.73502]
[1749730468203,0.73497,2720.7,2720.6,24.734]
[1749730468405,2.71858124,2720.7,2720.6,31.904]
[1749730468902,1.98361124,2720.7,2720.3,22.98359334]
[1749730469101,0.73503,2720.5,2720.4,31.903]
[1749730469399,0.73505,2720.4,2720.3,22.24852334]
[1749730469796,1.98755,2720.4,2720.3,54.15152334]
[1749730470299,1.98755,2720.4,2720.3,54.146]
[1749730470494,1.98755,2720.4,2720.3,52.31327453]
[1749730471099,3.29362943,2720.4,2720.3,52.31327453]
[1749730471698,3.29362943,2720.4,2720.3,50.47502572]
[1749730472004,3.29362943,2720.4,2720.3,46.7985281]
[1749730475303,3.29362943,2720.4,2720.3,20.22671172]
[1749730475502,3.29362943,2720.4,2720.3,43.11189534]
[1749730475705,3.29362943,2720.4,2720.3,41.27407896]
[1749730475903,3.29362943,2720.4,2720.3,14.71326258]
[1749730476100,3.29362943,2720.4,2720.3,35.76062982]
[1749730476504,0.73511,2720.2,2720.1,0.00552334]
[1749730476705,0.73511,2720.2,2720.1,31.89552334]
[1749730477208,11.47439925,2720.2,2720.1,3.34e-06]
[1749730478110,0.73527,2719.6,2719.5,7.168]
[1749730478407,0.73527,2719.6,2719.5,31.887]
[1749730479304,1.93797,2719.6,2719.5,31.887]
[1749730480003,1.93797,2719.6,2719.5,7.168]
[1749730481008,1.93797,2719.6,2719.5,30.04787284]
[1749730481805,1.93797,2719.6,2719.5,28.20974568]
[1749730487211,0.73527,2719.6,2719.5,28.20974568]
[1749730487918,0.73532,2719.4,2719.3,7.17452334]
[1749730488112,0.73532,2719.4,2719.3,31.88752334]
[1749730488823,0.73532,2719.4,2719.3,0.00552334]
[1749730489026,0.73532,2719.4,2719.3,31.88652334]
[1749730493229,0.73532,2719.4,2719.3,31.88152334]
[1749730493632,0.73532,2719.4,2719.3,7.15952334]
[1749730493834,0.73532,2719.4,2719.3,31.86652334]
[1749730494530,0.73532,2719.4,2719.3,0.00552334]
[1749730494727,0.73532,2719.4,2719.3,24.71152334]
[1749730494930,0.73532,2719.4,2719.3,0.00552334]
[1749730495124,0.73532,2719.4,2719.3,24.71152334]
[1749730495819,0.73532,2719.4,2719.3,0.00552334]
[1749730496021,0.73562,2718.3,2718.2,3.2078]
[1749730496219,0.73562,2718.3,2718.2,13.3989]
[1749730496431,0.73562,2718.3,2718.2,38.1019]
[1749730497127,0.73562,2718.4,2718.3,0.7356]
[1749730497425,1.99087976,2718.4,2718.3,1.307]
[1749730498825,1.99084976,2718.4,2718.3,1.307]
[1749730499334,0.73562,2718.3,2718.2,0.8809]
[1749730499529,0.73562,2718.3,2718.2,25.5819]
[1749730500433,0.73568,2718.1,2718.0,0.00552334]
[1749730500637,0.73578,2717.7,2717.6,7.155]
[1749730500935,0.73592,2717.2,2717.1,2.1239]
[1749730501128,0.73592,2717.2,2717.1,26.8249]
[1749730501327,0.73592,2717.2,2717.1,25.5282]
[1749730501527,0.73592,2717.2,2717.1,0.8282]
[1749730501731,0.73592,2717.2,2717.1,25.5282]
[1749730501926,3.2078,2717.7,2717.2,1.83981]
[1749730502126,0.73568,2718.1,2717.6,3.2078]
[1749730502324,0.73578,2717.7,2717.6,3.2078]
[1749730502532,1.83934,2717.9,2717.3,22.242]
[1749730502734,3.2078,2718.1,2717.4,35.0618]
[1749730502935,4.49206746,2718.4,2717.9,0.73571]
[1749730503235,0.73567,2718.2,2718.0,33.47179]
[1749730503432,4.49206746,2718.4,2718.3,0.73562]
[1749730503737,5.22765746,2718.4,2718.3,24.7]
[1749730504232,5.22765746,2718.4,2718.3,25.43562]
[1749730504431,5.22765746,2718.4,2718.3,24.7]
[1749730504632,2.01985746,2718.4,2718.3,24.7]
[1749730505037,1.28426746,2718.4,2718.3,25.43562]
[1749730505336,0.73559,2718.4,2718.3,24.7]
[1749730506337,0.73565,2718.2,2718.1,0.8159]
[1749730506533,0.73565,2718.2,2718.1,32.6679]
[1749730506732,0.73563,2718.3,2718.1,32.6679]
[1749730506929,0.00552334,2718.5,2718.4,0.73559]
[1749730507125,2.0126326,2718.5,2718.4,24.697]
[1749730507331,0.74109334,2718.5,2718.4,24.697]
[1749730508535,3.2078,2719.7,2718.4,55.1498]
[1749730508731,0.73535,2719.3,2719.2,3.2078]
[1749730509036,0.73543,2719.0,2718.9,3.2078]
[1749730509239,0.73543,2719.0,2718.9,35.0578]
[1749730509640,0.73543,2719.0,2718.9,31.849]
[1749730510337,0.73541,2719.1,2718.9,32.58445]
[1749730510532,0.00552334,2719.2,2718.9,31.849]
[1749730510836,0.73543,2719.0,2718.9,31.849]
[1749730511035,0.73543,2719.1,2718.9,32.58444]
[1749730511236,0.73543,2719.0,2718.9,31.849]
[1749730511733,0.73549,2718.8,2718.7,0.00552334]
[1749730512037,0.73549,2718.8,2718.7,24.69652334]
[1749730512543,0.73549,2718.8,2718.7,24.69552334]
[1749730513926,3.2078,2718.9,2718.7,24.69552334]
[1749730514133,3.2078,2718.9,2718.8,0.73549]
[1749730515436,0.73549,2718.8,2718.7,24.69552334]
[1749730515730,0.73549,2718.8,2718.7,0.00552334]
[1749730515933,0.73549,2718.8,2718.7,24.69252334]
[1749730517332,0.73545,2719.0,2718.9,0.73545]
[1749730517734,0.73545,2719.0,2718.4,22.245]
[1749730518033,0.73625,2716.0,2715.6,3.2078]
[1749730518233,0.7363,2715.8,2715.7,0.07364583]
[1749730518637,3.9441,2715.8,2715.7,3.2078]
[1749730519035,0.73635,2715.6,2715.5,7.47552334]
[1749730519437,0.73635,2715.6,2715.5,0.00552334]
[1749730521632,3.2078,2715.8,2715.5,3.21332334]
[1749730521837,0.73634,2715.7,2715.5,3.21332334]
[1749730522139,0.73634,2715.7,2715.6,1.246]
[1749730522333,0.73634,2715.7,2715.6,4.4538]
[1749730524331,0.73634,2715.7,2715.6,1.246]
[1749730524528,0.73634,2715.7,2715.6,4.4538]
[1749730524734,1.84015,2716.7,2715.6,6.246]
[1749730524929,0.73627,2715.9,2715.8,3.2078]
[1749730525135,0.73627,2715.9,2715.8,4.4451]
[1749730525340,0.73627,2715.9,2715.8,45.2451]
[1749730525739,0.73627,2715.9,2715.8,50.2451]
[1749730526041,0.00552334,2716.1,2715.8,50.2451]
[1749730526243,3.2078,2716.9,2715.9,1.84068]
[1749730526538,3.2078,2716.9,2716.5,3.2078]
[1749730526739,0.73605,2716.8,2716.6,34.58768]
[1749730526938,0.73605,2716.8,2716.7,1.2276]
[1749730527437,0.00552334,2717.0,2716.7,1.2276]
[1749730527438,0.00552334,2717.0,2716.8,0.73601]
[1749730527633,0.74152334,2717.0,2716.9,1.2276]
[1749730527838,0.00552334,2717.0,2716.9,42.0276]
[1749730528037,0.74149334,2717.0,2716.9,47.0276]
[1749730528738,0.00552334,2717.0,2716.9,47.0276]
[1749730528943,0.00552334,2717.0,2716.9,72.1516]
[1749730529148,0.00552334,2717.0,2716.9,72.8876]
[1749730529442,0.74149334,2717.0,2716.9,72.8876]
[1749730529636,3.2078,2717.7,2716.9,72.1516]
[1749730529836,0.73578,2717.8,2717.5,3.2078]
[1749730530042,0.73573,2717.9,2717.7,0.73577]
[1749730530246,0.73572,2718.0,2717.8,1.286]
[1749730530438,0.73572,2718.0,2717.9,25.088]
[1749730530633,3.2078,2718.1,2717.9,25.088]
[1749730530834,0.00552334,2718.2,2717.9,34.5818]
[1749730531041,0.00552334,2718.2,2718.1,0.73567]
[1749730531234,0.00552334,2718.2,2718.1,8.20967]
[1749730531541,3.2078,2718.7,2718.3,0.73561]
[1749730531542,0.73554,2718.6,2718.3,0.73561]
[1749730531742,0.73554,2718.6,2718.4,27.10159]
[1749730531938,3.2078,2718.7,2718.4,26.366]
[1749730532140,0.73557,2718.5,2718.4,26.366]
[1749730532446,0.73557,2718.5,2718.4,27.10158]
[1749730532645,0.73557,2718.5,2718.4,26.366]
[1749730533145,3.2078,2719.1,2718.8,0.73548]
[1749730533336,0.73544,2719.0,2718.8,32.534]
[1749730533542,3.2078,2719.1,2718.8,33.26948]
[1749730533846,0.73544,2719.0,2718.8,33.26948]
[1749730534048,1.46896,2718.9,2718.8,33.26948]
[1749730534347,0.7335,2718.9,2718.8,33.26948]
[1749730535140,1.46897,2718.9,2718.8,32.476]
[1749730535340,0.7335,2718.9,2718.8,33.21148]
[1749730535542,0.7335,2718.9,2718.8,39.40398]
[1749730536343,3.94306,2719.7,2719.1,1.83849]
[1749730536549,0.73527,2719.6,2719.5,0.73527]
[1749730536841,0.73527,2719.6,2719.5,32.437]
[1749730537446,0.73527,2719.6,2719.5,33.17229]
[1749730537747,0.73527,2719.6,2719.5,32.437]
[1749730538045,5.04591,2719.7,2719.2,1.1925]
[1749730538247,0.73527,2719.6,2719.5,7.471]
[1749730538444,0.73527,2719.6,2719.5,32.428]
[1749730540751,1.95807,2719.6,2719.5,32.428]
[1749730541346,0.73527,2719.6,2719.5,32.428]
[1749730542150,3.2078,2719.7,2719.6,0.73527]
[1749730542345,0.73527,2719.6,2719.5,33.16328]
[1749730542547,50.0,2720.0,2719.7,0.73523]
[1749730542747,0.73519,2719.9,2719.8,24.868]
[1749730544449,0.73519,2719.9,2719.8,24.847]
[1749730544640,1.96259,2719.9,2719.8,24.847]
[1749730545452,0.73538,2719.2,2719.1,24.82752334]
[1749730545648,3.94318,2719.2,2719.1,24.82752334]
[1749730546359,3.94318,2719.2,2719.1,24.83152334]
[1749730546550,3.94318,2719.2,2719.1,0.00552334]
[1749730546854,0.73546,2718.9,2718.8,7.468]
[1749730547159,3.94326,2718.9,2718.8,32.281]
[1749730547852,3.94326,2718.9,2718.8,7.468]
[1749730548055,3.94326,2718.9,2718.8,32.276]
[1749730549459,0.73551,2718.7,2718.6,0.00552334]
[1749730550051,0.73551,2718.7,2718.6,7.20752334]
[1749730550557,0.73551,2718.7,2718.6,31.95152334]
[1749730550859,5.73551,2718.7,2718.6,7.20752334]
[1749730551354,0.73551,2718.7,2718.6,7.20752334]
[1749730553753,1.2615,2718.8,2718.6,7.94304334]
[1749730553957,1.99699,2718.8,2718.7,24.703]
[1749730555359,0.73549,2718.8,2718.7,24.703]
[1749730555657,0.73549,2718.8,2718.7,25.43851]
[1749730555857,3.94328,2718.9,2718.8,0.73549]
[1749730556161,3.94328,2718.9,2718.7,24.703]
[1749730556162,0.73549,2718.8,2718.7,24.703]
[1749730556360,0.73551,2718.7,2718.6,7.20752334]
[1749730556658,0.73551,2718.7,2718.6,0.00552334]
[1749730558654,0.73559,2718.4,2718.3,29.446]
[1749730558960,3.94339,2718.4,2718.3,29.446]
[1749730559860,5.17399,2718.4,2718.3,29.446]
[1749730562256,6.53719067,2718.4,2718.3,29.446]
[1749730562459,5.17399,2718.4,2718.3,29.446]
[1749730563060,6.53724203,2718.4,2718.3,29.446]
[1749730563252,3.94339,2718.4,2718.3,7.203]
[1749730563452,0.73559,2718.4,2718.3,7.203]
[1749730565755,0.73559,2718.4,2718.3,7.93862]
[1749730565961,0.73556,2718.6,2718.5,0.73554]
[1749730566169,0.73556,2718.6,2718.5,25.43554]
[1749730566457,3.2078,2719.0,2718.9,0.73546]
[1749730566662,0.00552334,2719.1,2719.0,0.73543]
[1749730566862,0.00552334,2719.1,2719.0,2.01853]
[1749730567161,0.00552334,2719.1,2719.0,46.02633]
[1749730567858,0.74093334,2719.1,2719.0,46.02633]
[1749730568160,0.74093334,2719.1,2719.0,73.9871]
[1749730568660,0.00552334,2719.1,2719.0,74.72253]
[1749730568858,3.94308,2719.6,2719.4,0.73531]
[1749730569062,3.94308,2719.6,2719.5,33.1444]
[1749730569963,3.2078,2719.6,2719.5,33.8797]
[1749730570662,0.00552334,2719.8,2719.5,33.1444]
[1749730570965,0.00552334,2719.8,2719.7,0.73524]
[1749730571259,0.74074334,2719.8,2719.7,24.696]
[1749730571565,0.00552334,2719.8,2719.7,26.67364]
[1749730573462,50.0,2720.0,2719.9,0.73519]
[1749730573658,50.0,2720.0,2719.9,25.42719]
[1749730574756,50.0,2720.0,2719.7,4.4502]
[1749730574960,0.73519,2719.9,2719.8,33.1806]
[1749730575161,0.73519,2719.9,2719.8,1.2916]
[1749730575362,53.2078,2720.0,2719.8,7.201]
[1749730575557,0.73527,2719.6,2719.5,23.53812334]
[1749730575759,0.73527,2719.6,2719.5,56.16142334]
[1749730575962,0.73527,2719.6,2719.5,55.42612334]
[1749730576464,0.73527,2719.6,2719.5,54.13452334]
[1749730577367,0.73527,2719.6,2719.5,54.86982334]
[1749730577758,0.73527,2719.6,2719.5,54.13452334]
[1749730580672,0.73527,2719.6,2719.5,54.86982334]
[1749730581372,0.73527,2719.6,2719.5,54.86981334]
[1749730581969,0.73526,2719.7,2719.6,0.73525]
[1749730582267,0.73527,2719.6,2719.5,54.86981334]
[1749730582470,53.2078,2720.0,2719.5,54.86981334]
[1749730582471,50.0,2720.0,2719.9,0.73519]
[1749730582773,50.0,2720.0,2719.9,32.55719]
[1749730584078,50.0,2720.0,2719.9,73.35719]
[1749730584667,50.73516,2720.0,2719.9,40.8]
[1749730584876,50.73516,2720.0,2719.9,72.621]
[1749730585177,50.73516,2720.0,2719.9,40.8]
[1749730585377,0.73524,2719.7,2719.6,0.73527]
[1749730585677,0.73527,2719.6,2719.5,22.24652334]
[1749730585875,0.73526,2719.7,2719.6,0.73525]
[1749730586284,0.73526,2719.7,2719.5,94.86452334]
[1749730586285,0.73527,2719.6,2719.5,95.59980334]
[1749730586577,0.73527,2719.6,2719.5,70.18552334]
[1749730586769,0.73527,2719.6,2719.5,94.86352334]
[1749730586966,0.73527,2719.6,2719.5,70.18552334]
[1749730587168,0.73527,2719.6,2719.5,94.86352334]
[1749730587371,0.73527,2719.6,2719.5,95.59882334]
[1749730587570,0.73527,2719.6,2719.5,94.86352334]
[1749730587775,0.73527,2719.6,2719.5,63.04652334]
[1749730587976,0.73527,2719.6,2719.5,0.00552334]
[1749730588177,1.97217,2719.6,2719.5,31.82152334]
[1749730588477,1.83838,2719.4,2719.1,7.139]
[1749730588677,0.73541,2719.1,2719.0,31.816]
[1749730589581,1.97231,2719.1,2719.0,31.816]
[1749730591274,0.73541,2719.1,2719.0,32.55143]
[1749730591475,0.00552334,2719.3,2719.0,40.0238]
[1749730591779,0.00552334,2719.3,2719.2,0.73538]
[1749730591979,0.00552334,2719.3,2719.2,25.41238]
[1749730592176,0.00552334,2719.3,2719.2,66.21238]
[1749730592680,0.74087334,2719.3,2719.2,72.615]
[1749730592873,0.74087334,2719.3,2719.2,40.8]
[1749730593183,0.74087334,2719.3,2719.2,31.815]
[1749730593481,0.74087334,2719.3,2719.2,31.814]
[1749730596986,0.74087334,2719.3,2719.2,31.812]
[1749730598180,0.74087334,2719.3,2719.2,7.139]
[1749730598484,0.73546,2718.9,2718.8,0.74101334]
[1749730598675,1.2599,2719.2,2718.8,7.14452334]
[1749730598879,0.73546,2718.9,2718.8,73.35099334]
[1749730599684,0.73539,2719.2,2719.1,0.73538]
[1749730599883,0.73539,2719.2,2719.1,25.40638]
[1749730600885,0.73538,2719.2,2719.1,24.671]
[1749730601388,0.73538,2719.2,2719.1,25.4064]
[1749730601978,0.74088334,2719.3,2719.2,0.73538]
[1749730602284,0.73538,2719.2,2719.1,24.671]
[1749730602586,0.73538,2719.2,2719.1,31.811]
[1749730603090,0.73538,2719.2,2719.1,32.54641]
[1749730603581,0.74089334,2719.3,2719.2,0.73538]
[1749730603779,0.00552334,2719.3,2719.1,31.811]
[1749730603984,0.73538,2719.2,2719.1,33.0598]
[1749730604390,0.73538,2719.2,2719.1,33.79521]
[1749730605100,0.00552334,2719.3,2719.2,0.73538]
[1749730605299,0.00552334,2719.3,2719.2,1.95698]
[1749730605502,0.00552334,2719.3,2719.2,6.95698]
[1749730605799,0.73524,2719.8,2719.7,0.73524]
[1749730606002,50.0,2720.0,2719.7,31.805]
[1749730606297,0.7352,2719.9,2719.8,0.73519]
[1749730606501,0.7352,2719.9,2719.8,25.40019]
[1749730607097,0.7352,2719.9,2719.8,24.665]
[1749730607292,0.73527,2719.6,2719.5,23.4606]
[1749730607496,1.83798,2719.9,2719.5,23.4606]
[1749730607497,3.2078,2719.9,2719.6,0.73526]
[1749730607803,0.73522,2719.8,2719.7,24.664]
[1749730608202,0.73527,2719.6,2719.5,22.239]
[1749730608399,3.2078,2719.9,2719.5,54.024]
[1749730608701,0.73521,2719.9,2719.8,0.73522]
[1749730608901,0.73521,2719.9,2719.8,25.39522]
[1749730609097,0.73521,2719.9,2719.8,24.66]
[1749730609795,50.0,2720.0,2719.9,0.73519]
[1749730610101,50.73516,2720.0,2719.9,9.10339]
[1749730610305,50.73516,2720.0,2719.9,49.90339]
[1749730610796,51.83795,2720.0,2719.8,7.124]
[1749730611000,5.16389,2719.9,2719.8,7.124]
[1749730611197,5.16389,2719.9,2719.8,31.78]
[1749730613697,0.73519,2719.9,2719.8,31.78]
[1749730613903,0.73524,2719.8,2719.5,22.239]
[1749730614099,0.73524,2719.8,2719.7,0.73522]
[1749730615705,0.73524,2719.7,2719.6,32.51226]
[1749730616505,0.73524,2719.8,2719.7,0.73523]
[1749730617003,0.73524,2719.7,2719.6,32.51225]
[1749730617408,0.73524,2719.7,2719.6,31.777]
[1749730617898,0.73524,2719.7,2719.6,32.51227]
[1749730618502,0.73527,2719.6,2719.5,22.239]
[1749730618807,0.73527,2719.6,2719.5,54.7483]
[1749730618999,0.73527,2719.6,2719.5,54.013]
[1749730619597,0.73527,2719.6,2719.5,22.239]
[1749730619800,0.73527,2719.6,2719.5,54.01]
[1749730620101,0.73527,2719.6,2719.5,29.363]
[1749730620102,1.96417,2719.6,2719.5,29.363]
[1749730620304,1.96417,2719.6,2719.5,54.01]
[1749730620802,1.83834,2719.4,2718.8,0.00552334]
[1749730621002,3.94318,2719.2,2719.1,7.124]
[1749730621195,3.94318,2719.2,2719.1,31.769]
[1749730621400,3.94318,2719.2,2718.8,0.00552334]
[1749730621401,0.73546,2718.9,2718.8,7.12952334]
[1749730621596,3.94326,2718.9,2718.8,31.77452334]
[1749730622207,3.94326,2718.9,2718.8,31.77352334]
[1749730622405,3.2078,2719.4,2718.8,31.77352334]
[1749730622710,3.2078,2719.8,2719.6,0.73524]
[1749730622900,3.94302,2719.8,2719.7,31.767]
[1749730623096,3.94302,2719.8,2719.7,31.768]
[1749730623501,5.16402,2719.8,2719.7,31.768]
[1749730623702,3.94302,2719.8,2719.7,31.768]
[1749730624207,5.16402,2719.8,2719.7,31.768]
[1749730624414,3.94302,2719.8,2719.7,31.768]
[1749730625304,3.2078,2719.8,2719.7,32.50324]
[1749730626302,50.0,2720.0,2719.7,32.50324]
[1749730626303,10.45248236,2720.0,2719.9,0.73519]
[1749730626510,10.45248236,2720.0,2719.9,25.37719]
[1749730626907,10.45248236,2720.0,2719.9,26.64459]
[1749730627408,10.45248236,2720.0,2719.9,31.766]
[1749730627612,11.18764236,2720.0,2719.9,31.766]
[1749730627813,10.45248236,2720.0,2719.9,32.50119]
[1749730628012,11.18764236,2720.0,2719.9,31.766]
[1749730628200,11.18764236,2720.0,2719.5,25.4458]
[1749730628201,0.73526,2719.7,2719.5,25.4458]
[1749730628409,0.73524,2719.7,2719.6,7.125]
[1749730628609,0.73524,2719.7,2719.6,31.765]
[1749730628915,0.9463,2719.9,2719.6,31.762]
[1749730629120,0.73525,2719.7,2719.6,31.762]
[1749730630520,0.73527,2719.6,2719.5,22.238]
[1749730630809,0.73527,2719.6,2719.5,53.997]
[1749730631012,3.94307,2719.6,2719.5,29.362]
[1749730631209,3.94307,2719.6,2719.5,53.997]
[1749730633115,4.1541,2719.9,2719.5,53.997]
[1749730633313,0.73527,2719.6,2719.5,22.238]
[1749730633617,0.73527,2719.6,2719.5,53.994]
[1749730634519,0.73527,2719.6,2719.5,54.7293]
[1749730634818,0.73523,2719.8,2719.7,0.73524]
[1749730635009,4.1541,2719.9,2719.8,0.73522]
[1749730635409,1.68149,2719.9,2719.8,0.73522]
[1749730636714,0.73522,2719.8,2719.7,25.36722]
[1749730637115,0.73522,2719.8,2719.7,24.632]
[1749730637420,0.73522,2719.8,2719.7,7.124]
[1749730637620,0.73527,2719.6,2719.5,29.362]
[1749730637814,3.94307,2719.6,2719.5,29.362]
[1749730638119,3.94307,2719.6,2719.5,53.987]
[1749730638321,3.94307,2719.6,2719.5,7.124]
[1749730638617,3.94307,2719.6,2719.5,31.749]
[1749730640017,1.83832,2719.4,2718.9,3.2078]
[1749730640317,3.94312,2719.4,2719.3,7.103]
[1749730640512,3.94312,2719.4,2719.3,31.725]
[1749730640714,0.73532,2719.4,2719.3,32.46035]
[1749730641624,0.73532,2719.4,2719.3,31.725]
[1749730641812,0.73532,2719.4,2719.3,32.46035]
[1749730642017,0.73531,2719.5,2719.4,0.7353]
[1749730642618,0.73532,2719.4,2719.3,31.725]
[1749730643018,3.94312,2719.4,2719.3,31.724]
[1749730645221,3.94312,2719.4,2719.3,32.45935]
[1749730645425,0.73532,2719.4,2719.3,32.45935]
[1749730645614,0.73532,2719.4,2719.3,31.724]
[1749730645821,3.94312,2719.4,2719.3,31.724]
[1749730646022,3.94312,2719.4,2719.3,31.721]
[1749730647429,3.94312,2719.4,2719.3,31.719]
[1749730648521,3.94312,2719.4,2719.3,7.103]
[1749730648826,3.94312,2719.4,2719.3,31.716]
[1749730650622,0.73532,2719.4,2719.3,32.45135]
[1749730650817,0.73532,2719.4,2719.3,31.716]
[1749730651625,0.73532,2719.4,2719.3,32.45135]
[1749730652228,0.73532,2719.4,2719.3,31.716]
[1749730652633,0.73532,2719.5,2719.4,0.7353]
[1749730652926,3.2078,2719.7,2719.6,0.73527]
[1749730653126,3.2078,2719.7,2719.6,25.34327]
[1749730653127,3.94304,2719.7,2719.6,25.34327]
[1749730653828,3.2078,2719.7,2719.6,25.34327]